bitfinex/quotes_ETHUSD_20250523
["timestamp","ask_amount","ask_price","bid_price","bid_amount"]
[1747984864273,0.02,2665.9,2665.8,32.97488103]
[1747984865322,0.9847,2666.8,2665.8,29.22366189]
[1747984865612,0.02,2666.9,2666.1,8.0]
[1747984865795,0.02,2666.9,2666.2,20.27047575]
[1747984865985,0.02,2666.9,2666.6,3.75007868]
[1747984866319,0.02,2666.9,2666.7,11.238]
[1747984866476,0.02,2666.9,2666.8,14.651]
[1747984866872,0.02,2666.9,2666.8,14.98793439]
[1747984868015,3.7696719,2666.9,2666.8,26.22393439]
[1747984868312,0.02,2666.9,2666.8,26.22393439]
[1747984869130,0.02,2666.9,2666.8,28.84632783]
[1747984869828,0.02,2666.9,2666.8,32.59614033]
[1747984870221,3.7696719,2666.9,2666.8,0.33693439]
[1747984870607,5.2824719,2666.9,2666.8,14.98693439]
[1747984871531,5.2824719,2666.9,2666.8,14.65]
[1747984871721,6.22568017,2666.9,2666.8,14.65]
[1747984871906,3.75051569,2666.3,2666.2,16.183]
[1747984872113,3.75051569,2666.3,2666.2,42.067]
[1747984872299,0.96320827,2666.9,2666.2,42.067]
[1747984872498,0.96320827,2666.9,2666.3,0.33296863]
[1747984872499,3.74994832,2666.8,2666.3,0.33296863]
[1747984872740,4.73038097,2666.9,2666.3,0.33296863]
[1747984872741,0.9807,2666.9,2666.3,0.33296863]
[1747984872910,0.02,2666.9,2666.3,0.33296863]
[1747984873102,0.02,2666.9,2666.7,3.74988478]
[1747984873299,0.02,2666.9,2666.8,29.96678113]
[1747984876148,0.02,2666.9,2666.8,37.96678113]
[1747984876313,0.4,2667.0,2666.9,11.7496719]
[1747984877034,0.4,2667.0,2666.9,38.20555223]
[1747984877398,0.4,2667.0,2666.9,38.53852086]
[1747984877839,0.4,2667.0,2666.9,53.03852086]
[1747984879017,0.02,2667.9,2667.6,3.74858804]
[1747984879323,0.02,2667.9,2667.7,42.041]
[1747984879638,0.02,2667.9,2667.8,0.33296863]
[1747984880109,0.02,2667.9,2667.8,26.19396863]
[1747984880906,3.76826642,2667.9,2667.8,0.33296863]
[1747984881106,0.02,2667.9,2667.8,26.19196863]
[1747984881308,4.14508559,2667.9,2667.8,14.95896863]
[1747984882301,3.76826642,2667.9,2667.8,14.95896863]
[1747984882642,4.71656642,2667.9,2667.8,14.626]
[1747984883049,4.29840692,2667.8,2667.7,16.178]
[1747984883258,5.57472342,2667.8,2667.7,30.803]
[1747984883820,10.71665844,2667.9,2667.7,30.803]
[1747984884043,6.9683,2667.9,2667.7,30.803]
[1747984884242,0.9683,2667.9,2667.7,30.803]
[1747984884425,0.02,2667.9,2667.7,30.803]
[1747984884746,0.02,2667.9,2667.7,34.55149239]
[1747984884943,0.02,2667.9,2667.7,30.803]
[1747984885118,0.02,2667.9,2667.8,3.74840692]
[1747984885830,0.02,2667.9,2667.8,4.0795679]
[1747984886248,0.02,2667.9,2667.8,4.52852406]
[1747984886403,0.02,2667.9,2667.8,12.6495462]
[1747984887258,1.86038446,2669.9,2667.9,8.55]
[1747984887466,1.86038446,2669.9,2668.1,3.74798545]
[1747984887670,1.0004,2669.7,2668.3,8.0]
[1747984887822,1.0004,2669.7,2668.6,11.74723833]
[1747984887823,3.74638285,2669.3,2668.6,11.74723833]
[1747984888025,4.74617918,2669.7,2668.7,34.5450337]
[1747984888026,3.74624671,2669.4,2668.7,34.5450337]
[1747984888278,3.74601985,2669.5,2668.7,34.5450337]
[1747984888279,3.745674,2669.8,2668.7,30.798]
[1747984888558,1.86038446,2669.9,2668.8,26.82783734]
[1747984888766,3.74613268,2669.5,2668.8,29.60292189]
[1747984889069,3.74613268,2669.5,2668.9,3.74683626]
[1747984889263,4.2959403,2669.6,2668.9,3.74683626]
[1747984889556,3.74620241,2669.4,2668.7,16.174]
[1747984889719,1.40709403,2669.5,2668.9,3.74677396]
[1747984889910,1.40709403,2669.5,2668.9,3.74678623]
[1747984890115,0.9775,2669.5,2668.9,3.74684638]
[1747984890340,4.72355515,2669.5,2668.9,3.74684638]
[1747984890536,4.72355515,2669.5,2669.0,3.74671503]
[1747984890743,4.72355515,2669.5,2668.8,29.59797239]
[1747984890948,3.74617308,2669.4,2668.9,3.746862]
[1747984891150,0.9775,2669.5,2668.8,29.5979948]
[1747984891356,4.72359064,2669.5,2669.0,3.74671066]
[1747984891565,0.9775,2669.5,2668.8,25.851]
[1747984891865,0.9775,2669.5,2669.0,3.74670871]
[1747984892062,4.72352126,2669.5,2669.0,3.74670871]
[1747984892279,4.72353295,2669.5,2669.0,3.7466589]
[1747984893056,3.74700239,2668.8,2668.7,16.174]
[1747984893222,3.74700239,2668.8,2667.4,1.19715423]
[1747984893223,5.29204498,2668.2,2667.4,1.19715423]
[1747984893559,5.29204498,2668.2,2667.9,14.619]
[1747984893767,4.74204498,2668.2,2667.9,14.619]
[1747984894440,0.9942,2668.2,2667.8,3.74833128]
[1747984894641,0.9942,2668.2,2668.1,14.62]
[1747984895261,4.7298166,2668.5,2668.1,14.62]
[1747984895462,3.74756917,2668.4,2668.1,14.62]
[1747984895653,0.9823,2668.5,2668.1,14.62]
[1747984895654,4.72973798,2668.5,2668.1,14.62]
[1747984895973,3.74771388,2668.3,2668.1,14.62]
[1747984896174,0.9823,2668.5,2667.7,16.169]
[1747984896321,3.74768048,2668.4,2667.8,25.849]
[1747984896527,4.72978838,2668.5,2667.8,29.59736447]
[1747984896761,4.72985148,2668.5,2667.8,25.849]
[1747984897064,4.7298347,2668.5,2667.9,3.74817148]
[1747984897273,4.7298347,2668.5,2668.0,3.7481118]
[1747984897576,3.74584121,2669.7,2668.2,3.74775804]
[1747984897577,3.74707554,2668.8,2668.2,3.74775804]
[1747984897862,3.74707554,2668.8,2668.3,14.62]
[1747984898037,3.74672161,2669.0,2668.3,18.36768971]
[1747984898242,3.74709614,2668.8,2668.3,14.62]
[1747984898446,3.74709614,2668.8,2668.3,18.36769661]
[1747984898762,3.74690108,2668.9,2668.3,14.62]
[1747984898971,3.74672161,2669.0,2668.3,14.62]
[1747984899172,0.9532,2669.3,2668.3,16.45679531]
[1747984899391,0.9532,2669.3,2668.9,3.74684748]
[1747984899552,0.9532,2669.3,2669.0,30.79]
[1747984899553,4.69950512,2669.3,2669.0,30.79]
[1747984900336,0.9532,2669.3,2669.0,30.79]
[1747984900549,4.6995659,2669.3,2669.0,30.79]
[1747984901741,0.9532,2669.3,2669.0,30.79]
[1747984902041,3.74647736,2669.2,2669.0,30.789]
[1747984902258,1.42313708,2669.3,2669.0,30.789]
[1747984902259,3.74658124,2669.1,2669.0,30.789]
[1747984902779,3.74651846,2669.2,2669.0,30.789]
[1747984903347,3.74644942,2669.2,2669.0,30.789]
[1747984903680,3.74644095,2669.2,2669.0,30.789]
[1747984903973,0.9532,2669.3,2669.0,42.017]
[1747984904173,3.74627599,2669.4,2669.0,42.017]
[1747984904372,3.74627599,2669.4,2669.0,43.77682653]
[1747984904579,3.7463334,2669.3,2669.0,43.77682653]
[1747984904780,3.7463334,2669.3,2669.0,42.017]
[1747984906056,0.9274,2669.6,2669.2,3.74632134]
[1747984906283,6.9376,2669.9,2669.0,42.017]
[1747984906444,6.9376,2669.9,2669.0,45.76365561]
[1747984906445,0.9376,2669.9,2669.0,45.76365561]
[1747984906647,0.02,2669.9,2669.5,3.74600284]
[1747984906850,3.76547186,2669.9,2669.6,26.061]
[1747984907355,0.02,2669.9,2669.6,26.061]
[1747984907544,0.02,2669.9,2669.6,32.78752511]
[1747984907747,0.02,2669.9,2669.6,29.04169517]
[1747984908490,0.02,2669.9,2669.6,32.78747539]
[1747984908950,0.02,2669.9,2669.6,29.04169517]
[1747984909852,0.02,2669.9,2669.6,32.78754935]
[1747984910178,0.02,2669.9,2669.6,29.04169517]
[1747984910384,0.02,2669.9,2669.6,26.061]
[1747984910592,3.74651031,2669.2,2669.0,16.17]
[1747984910793,3.74658124,2669.1,2669.0,16.17]
[1747984910951,3.74658124,2669.1,2669.0,31.003]
[1747984911403,5.29828594,2669.6,2669.0,31.003]
[1747984911404,3.74611431,2669.5,2669.0,31.003]
[1747984911605,3.74652602,2669.2,2669.0,31.003]
[1747984911763,3.74636439,2669.3,2669.0,31.003]
[1747984912314,1.0023,2669.6,2669.0,31.003]
[1747984912478,3.74637665,2669.3,2669.0,31.003]
[1747984912679,1.0023,2669.6,2669.0,31.003]
[1747984912880,4.71698124,2669.1,2669.0,31.003]
[1747984914321,1.0033,2669.6,2669.0,31.003]
[1747984914612,3.74619206,2669.4,2669.0,31.003]
[1747984914816,3.74608045,2669.5,2669.0,34.74971487]
[1747984915368,4.74922778,2669.6,2669.0,34.74971362]
[1747984915681,3.74618147,2669.4,2669.1,14.832]
[1747984916068,3.74611206,2669.5,2669.1,14.832]
[1747984916269,3.74601985,2669.5,2669.1,14.832]
[1747984916469,3.74616639,2669.4,2669.1,14.832]
[1747984916690,3.74644088,2669.2,2669.1,14.832]
[1747984916908,3.74606589,2669.5,2669.1,14.832]
[1747984917085,3.74622371,2669.4,2669.1,14.832]
[1747984917266,3.7460443,2669.5,2669.1,14.832]
[1747984917467,3.74603136,2669.5,2669.1,14.832]
[1747984917738,3.74622226,2669.4,2669.1,14.832]
[1747984917924,1.0033,2669.6,2669.1,14.832]
[1747984918085,3.74594071,2669.6,2669.1,20.43633355]
[1747984918283,0.9396,2669.8,2669.1,16.68988594]
[1747984918502,4.68526738,2669.8,2669.3,3.74623296]
[1747984918825,3.74581652,2669.7,2669.2,14.97136756]
[1747984919003,3.74585433,2669.7,2669.2,14.9713275]
[1747984919208,3.74585433,2669.7,2669.2,16.7100634]
[1747984919519,4.68526432,2669.8,2669.3,3.74629884]
[1747984919809,3.74588468,2669.6,2669.2,12.9637359]
[1747984919972,3.74579653,2669.7,2669.2,16.71014214]
[1747984920313,3.74587888,2669.7,2669.2,12.9637359]
[1747984920520,3.74589679,2669.6,2669.2,12.9637359]
[1747984920811,0.9396,2669.8,2668.7,0.59188033]
[1747984921009,3.74590133,2669.6,2669.1,14.97152067]
[1747984921318,3.74577903,2669.7,2669.2,3.74637691]
[1747984921525,0.9396,2669.8,2669.3,14.832]
[1747984921526,3.74588586,2669.6,2669.3,14.832]
[1747984922047,3.74603484,2669.5,2669.3,14.832]
[1747984922340,3.74603484,2669.5,2669.0,3.7466542]
[1747984922549,3.74700239,2668.8,2668.7,0.59188033]
[1747984922703,3.74700239,2668.8,2668.7,15.42288033]
[1747984923151,0.945,2669.2,2668.7,15.42288033]
[1747984923441,3.74635381,2669.3,2668.7,15.42288033]
[1747984923621,3.74644354,2669.2,2668.7,18.57804314]
[1747984923948,3.74646786,2669.2,2668.7,18.57811978]
[1747984924123,3.74646786,2669.2,2668.7,20.43593176]
[1747984924449,3.74642987,2669.3,2668.7,16.68881198]
[1747984924597,3.74663212,2669.1,2668.7,14.831]
[1747984924938,3.74660322,2669.1,2668.7,14.831]
[1747984925139,3.74630507,2669.3,2668.8,18.6164533]
[1747984925140,3.7463525,2669.3,2668.8,18.6164533]
[1747984925347,0.55,2669.5,2668.8,18.5789948]
[1747984925348,3.74605461,2669.5,2668.8,18.5789948]
[1747984925494,0.9769,2669.6,2669.1,3.74644771]
[1747984925929,0.9769,2669.6,2669.2,3.7464108]
[1747984926139,0.9769,2669.6,2669.3,14.832]
[1747984926355,4.72278878,2669.6,2669.3,14.832]
[1747984926529,4.72290232,2669.6,2669.3,14.832]
[1747984926734,3.74603826,2669.5,2669.3,14.832]
[1747984926918,4.72284796,2669.6,2669.3,14.832]
[1747984928196,3.74616018,2669.4,2669.3,14.832]
[1747984928415,3.74630052,2669.3,2668.9,0.59188033]
[1747984928635,3.74616018,2669.4,2669.3,14.832]
[1747984929203,4.59308093,2669.4,2669.3,14.832]
[1747984929618,6.06548093,2669.4,2669.3,14.832]
[1747984933235,3.74603279,2669.5,2669.3,14.832]
[1747984933599,3.74589793,2669.6,2669.3,14.832]
[1747984933799,3.74613078,2669.5,2669.3,14.832]
[1747984934238,3.74595515,2669.6,2669.3,14.832]
[1747984934438,3.74616018,2669.4,2669.3,14.832]
[1747984934605,3.74592197,2669.6,2669.3,14.832]
[1747984934805,3.74601985,2669.5,2669.3,14.832]
[1747984935043,3.74616018,2669.4,2669.3,14.832]
[1747984939652,5.26076018,2669.4,2669.3,14.832]
[1747984939851,3.74672161,2669.0,2668.9,14.743]
[1747984940813,4.65182161,2669.0,2668.9,14.743]
[1747984941015,5.49166466,2669.0,2668.9,14.743]
[1747984942332,4.65182161,2669.0,2668.9,14.743]
[1747984943558,3.74709375,2668.8,2668.6,16.164]
[1747984943744,3.74709375,2668.8,2668.7,14.744]
[1747984944114,3.74693849,2668.9,2668.7,14.744]
[1747984944630,3.74700239,2668.8,2668.7,14.744]
[1747984945216,3.7471428,2668.7,2668.6,16.164]
[1747984945557,3.7471428,2668.7,2668.6,30.908]
[1747984945729,3.7471428,2668.7,2668.6,16.164]
[1747984945930,3.7471428,2668.7,2668.6,30.908]
[1747984947340,3.7471428,2668.7,2668.6,31.24568738]
[1747984947635,5.04655886,2668.7,2668.6,0.33768738]
[1747984948641,6.04225886,2668.7,2668.6,0.33768738]
[1747984952879,5.2928428,2668.7,2668.6,0.33768738]
[1747984956073,4.29742364,2668.5,2668.4,8.0]
[1747984957462,4.29742364,2668.5,2668.4,8.33382188]
[1747984958067,4.29742364,2668.5,2668.4,0.33382188]
[1747984958267,5.20146703,2668.5,2668.4,0.33382188]
[1747984958644,5.20146703,2668.5,2668.4,8.33382188]
[1747984959547,5.20146703,2668.5,2668.4,8.0]
[1747984960195,3.74666416,2669.1,2668.4,11.74755472]
[1747984960486,10.52770383,2669.7,2669.1,8.0]
[1747984960487,3.74589683,2669.6,2669.1,8.0]
[1747984960691,0.9956,2669.7,2669.3,8.0]
[1747984960894,3.74616018,2669.4,2669.0,19.229]
[1747984961053,3.74616018,2669.4,2669.2,8.0]
[1747984961054,3.74630052,2669.3,2669.2,8.0]
[1747984962249,3.74630052,2669.3,2669.2,8.33302832]
[1747984962804,3.74618042,2669.4,2669.2,8.33302832]
[1747984962805,3.74628873,2669.4,2669.2,8.33302832]
[1747984963489,0.9956,2669.7,2669.2,8.33302832]
[1747984963490,3.74630052,2669.3,2669.2,8.0]
[1747984964287,4.74143077,2669.7,2669.2,8.0]
[1747984964288,3.74587953,2669.6,2669.2,8.0]
[1747984964489,3.74614773,2669.5,2669.2,10.2748]
[1747984964681,3.74616433,2669.4,2669.2,10.2748]
[1747984965789,3.74616433,2669.4,2669.3,0.33307479]
[1747984968866,3.74616433,2669.4,2669.1,14.748]
[1747984970207,3.74616433,2669.4,2668.9,8.0]
[1747984970208,3.74630052,2669.3,2669.2,14.627]
[1747984971781,3.74644376,2669.2,2668.9,19.226]
[1747984971985,3.74644376,2669.2,2669.0,14.627]
[1747984972815,0.9956,2669.7,2668.9,8.0]
[1747984973106,3.74644088,2669.2,2669.1,14.627]
[1747984973601,1.02412195,2669.6,2669.1,14.627]
[1747984973910,3.74644088,2669.2,2669.1,14.627]
[1747984974996,3.74644088,2669.2,2669.1,22.627]
[1747984975835,4.29634632,2669.3,2669.1,22.627]
[1747984976133,3.74644088,2669.2,2669.1,22.627]
[1747984976743,3.74607193,2669.5,2669.2,8.0]
[1747984977229,3.74616139,2669.4,2669.2,10.2627]
[1747984978415,3.74616139,2669.4,2669.2,8.0]
[1747984978817,3.74616139,2669.4,2669.3,0.34170865]
[1747984979528,4.29616139,2669.4,2669.3,0.34170865]
[1747984979733,4.29616139,2669.4,2669.3,22.96770865]
[1747984980124,3.74616139,2669.4,2669.3,22.96770865]
[1747984980300,4.29616139,2669.4,2669.3,22.96770865]
[1747984982055,4.82280016,2669.4,2669.3,8.34170865]
[1747984988438,5.75350016,2669.4,2669.3,8.34170865]
[1747984993846,5.75350016,2669.4,2669.3,0.34170865]
[1747984994348,11.75350016,2669.4,2669.3,0.34170865]
[1747984994935,11.75350016,2669.4,2668.1,1.18438515]
[1747984994936,3.74756408,2668.4,2668.3,15.21819257]
[1747984995231,3.74756408,2668.4,2668.3,23.21819257]
[1747984995420,3.74756408,2668.4,2668.3,15.21819257]
[1747984995866,3.74756408,2668.4,2668.3,23.21819257]
[1747984996237,3.74756408,2668.4,2668.3,15.21819257]
[1747984996563,3.74756408,2668.4,2668.3,23.21819257]
[1747984996879,3.74756408,2668.4,2668.3,14.628]
[1747984998444,3.74756408,2668.4,2668.3,14.96710613]
[1747984998984,3.74756408,2668.4,2668.3,22.96710613]
[1747985001979,4.29756408,2668.4,2668.3,22.96710613]
[1747985002277,4.29756408,2668.4,2668.3,22.96210613]
[1747985010442,6.0,2668.8,2668.4,11.74746386]
[1747985010617,6.0,2668.8,2668.4,22.97646386]
[1747985010618,9.74702416,2668.8,2668.4,22.97646386]
[1747985010908,9.74702416,2668.8,2668.5,0.33910613]
[1747985011758,9.74702416,2668.8,2668.6,0.33910613]
[1747985012858,9.74702416,2668.8,2668.7,0.33910613]
[1747985013060,4.29702416,2668.8,2668.7,0.33910613]
[1747985013270,5.28992416,2668.8,2668.7,8.33910613]
[1747985013699,1.5429,2668.8,2668.7,8.33910613]
[1747985014995,1.5429,2668.8,2668.7,0.33910613]
[1747985015202,1.5429,2668.8,2668.7,22.96410613]
[1747985018119,2.07186415,2668.8,2668.7,22.96410613]
[1747985019520,2.07186415,2668.8,2668.7,8.33910613]
[1747985019697,2.07186415,2668.8,2668.7,22.96410613]
[1747985020726,1.07896415,2668.8,2668.7,22.96410613]
[1747985021829,0.55,2668.8,2668.7,22.96410613]
[1747985022530,0.55,2668.8,2668.7,22.625]
[1747985024705,4.29700239,2668.8,2668.7,22.625]
[1747985025337,0.55,2668.8,2668.7,22.625]
[1747985025542,0.55,2668.8,2668.7,33.853]
[1747985025853,4.29700239,2668.8,2668.7,33.853]
[1747985026151,4.29700239,2668.8,2668.7,8.0]
[1747985026311,4.29700239,2668.8,2668.7,33.852]
[1747985028128,4.29700239,2668.8,2668.7,34.19605368]
[1747985031965,4.29700239,2668.8,2668.7,8.34405368]
[1747985032275,4.29700239,2668.8,2668.7,22.95405368]
[1747985034185,4.29700239,2668.8,2668.7,8.34405368]
[1747985034361,4.29700239,2668.8,2668.7,22.95405368]
[1747985036780,4.29700239,2668.8,2668.7,23.16357337]
[1747985040588,5.10139158,2668.8,2668.7,23.16357337]
[1747985041058,4.29700239,2668.8,2668.7,23.16357337]
[1747985041395,3.74668775,2669.1,2668.8,8.0]
[1747985041605,0.55,2669.2,2669.0,8.0]
[1747985041754,0.9376,2669.7,2669.0,10.74375197]
[1747985041952,3.74581927,2669.7,2669.2,3.74639399]
[1747985042199,3.74581565,2669.7,2669.4,8.0]
[1747985042370,3.74560974,2669.8,2669.4,8.0]
[1747985042371,3.74591004,2669.6,2669.4,8.0]
[1747985042697,3.74591004,2669.6,2669.5,0.55357337]
[1747985044252,4.49507718,2669.6,2669.5,15.16357337]
[1747985044455,3.74591004,2669.6,2669.5,23.16357337]
[1747985045404,3.74566224,2669.8,2669.6,8.0]
[1747985045554,3.74573922,2669.7,2669.6,8.0]
[1747985045955,3.74573922,2669.7,2669.6,8.34405368]
[1747985046369,3.74573922,2669.7,2669.6,8.55309099]
[1747985047900,3.74573922,2669.7,2669.6,0.55309099]
[1747985048066,3.7456694,2669.8,2669.6,15.16109099]
[1747985048498,3.7456694,2669.8,2669.7,0.20903731]
[1747985048792,3.7456694,2669.8,2669.7,0.55309099]
[1747985050497,3.76552062,2669.9,2669.7,0.55309099]
[1747985050697,0.02,2669.9,2669.8,31.13659892]
[1747985050873,0.02,2669.9,2669.8,27.391]
[1747985051203,0.02,2669.9,2669.8,31.4806526]
[1747985051498,0.02,2669.9,2669.8,30.02460373]
[1747985051683,3.76545863,2669.9,2669.8,16.71809099]
[1747985052005,3.76545863,2669.9,2669.8,31.32509099]
[1747985052885,3.76545863,2669.9,2669.8,16.71809099]
[1747985053093,3.76545863,2669.9,2669.8,31.32509099]
[1747985054111,0.02,2669.9,2669.8,31.32509099]
[1747985054405,3.76545863,2669.9,2669.8,31.32509099]
[1747985054768,3.76545863,2669.9,2669.8,14.606]
[1747985056303,3.74563721,2669.8,2669.7,11.225]
[1747985056503,3.74563721,2669.8,2669.7,25.831]
[1747985056705,3.74563721,2669.8,2669.7,33.831]
[1747985058259,3.74563721,2669.8,2669.7,33.83]
[1747985058415,3.76550692,2669.9,2669.8,8.0]
[1747985059866,3.74559892,2669.8,2669.7,8.0]
[1747985060061,3.74559892,2669.8,2669.7,33.811]
[1747985060223,3.76551696,2669.9,2669.7,33.811]
[1747985060422,3.76551696,2669.9,2669.7,8.0]
[1747985060623,3.76551696,2669.9,2669.8,33.811]
[1747985062537,5.23143922,2669.7,2669.6,16.164]
[1747985062746,5.23143922,2669.7,2669.6,30.751]
[1747985064687,4.29573922,2669.7,2669.6,38.751]
[1747985065155,3.7456365,2669.8,2669.6,38.751]
[1747985065553,3.74573922,2669.7,2669.6,38.751]
[1747985066376,9.7655006,2669.9,2669.7,8.0]
[1747985066676,9.7655006,2669.9,2669.7,19.224]
[1747985066677,0.02,2669.9,2669.7,19.224]
[1747985067058,0.02,2669.9,2669.8,0.33312166]
[1747985067371,0.02,2669.9,2669.8,0.54202143]
[1747985067780,3.76545863,2669.9,2669.8,0.54202143]
[1747985068145,3.76545863,2669.9,2669.8,23.12902143]
[1747985069568,3.76545863,2669.9,2669.8,8.54202143]
[1747985069991,3.76545863,2669.9,2669.8,34.35302143]
[1747985072074,3.76545863,2669.9,2669.8,34.01989977]
[1747985072475,3.76545863,2669.9,2669.8,33.811]
[1747985072672,4.29562417,2669.8,2669.7,14.587]
[1747985073193,1.4758,2669.7,2669.3,0.59531495]
[1747985073350,4.29562417,2669.8,2669.2,0.59531495]
[1747985073351,5.22210052,2669.3,2669.2,0.59531495]
[1747985073542,11.22210052,2669.3,2669.2,0.59531495]
[1747985073745,13.09352858,2669.3,2669.2,0.59531495]
[1747985074852,13.09352858,2669.3,2669.0,8.0]
[1747985074853,3.74658124,2669.1,2669.0,8.0]
[1747985075487,3.74700239,2668.8,2668.7,8.0]
[1747985075689,3.74700239,2668.8,2668.7,22.588]
[1747985076689,3.74700239,2668.8,2668.2,3.74777378]
[1747985076690,0.55,2668.8,2668.1,0.59531495]
[1747985076896,0.55,2668.8,2668.7,22.588]
[1747985076897,4.29700239,2668.8,2668.7,22.588]
[1747985077055,4.29700239,2668.8,2668.7,8.0]
[1747985077384,4.29700239,2668.8,2668.7,22.588]
[1747985078451,4.29700239,2668.8,2668.7,22.589]
[1747985079383,3.7467885,2669.0,2668.7,22.589]
[1747985080405,3.74686709,2668.9,2668.7,22.589]
[1747985080997,6.0,2669.3,2668.8,8.0]
[1747985081195,6.0,2669.3,2669.0,8.0]
[1747985081507,3.74631687,2669.3,2669.0,8.0]
[1747985082103,0.55,2669.4,2669.0,8.0]
[1747985082266,0.57634026,2669.4,2668.4,11.74750149]
[1747985082465,3.74678123,2669.0,2668.6,8.0]
[1747985082670,3.74678123,2669.0,2668.8,8.0]
[1747985082671,3.74693499,2668.9,2668.8,8.0]
[1747985082903,0.55,2669.6,2668.4,8.0]
[1747985082904,3.7471266,2668.8,2668.4,8.0]
[1747985083080,3.746862,2668.9,2668.8,14.59]
[1747985083286,3.74700239,2668.8,2668.7,8.0]
[1747985083481,3.74692931,2668.9,2668.8,8.0]
[1747985083887,4.29678152,2669.0,2668.8,8.0]
[1747985084495,3.74688239,2668.9,2668.8,11.226]
[1747985084694,3.74688239,2668.9,2668.8,33.816]
[1747985084895,3.74688239,2668.9,2668.8,8.0]
[1747985085103,3.74688239,2668.9,2668.8,22.59]
[1747985085870,3.74688239,2668.9,2668.8,8.0]
[1747985086192,4.29672161,2669.0,2668.9,8.0]
[1747985086990,3.74703635,2668.8,2668.3,16.162]
[1747985087312,3.74703635,2668.8,2668.4,35.49173149]
[1747985088513,3.74703635,2668.8,2668.4,9.67573149]
[1747985088687,4.29658638,2669.1,2668.5,25.816]
[1747985088877,3.7471956,2668.7,2668.5,25.816]
[1747985089213,3.7470192,2668.8,2668.5,25.816]
[1747985089603,0.55,2668.8,2668.6,8.0]
[1747985090319,0.55,2669.0,2668.6,8.0]
[1747985090714,0.55,2669.0,2668.6,11.74728261]
[1747985091014,0.55,2669.0,2668.6,8.0]
[1747985092116,0.55,2669.0,2668.6,11.74727427]
[1747985092278,0.55,2669.1,2668.6,11.74726155]
[1747985092603,4.29658412,2669.1,2668.6,11.74726155]
[1747985093215,4.71101064,2669.3,2668.7,3.74703016]
[1747985093517,4.71101064,2669.3,2668.8,8.0]
[1747985093720,10.29606911,2669.5,2668.8,3.74699849]
[1747985094018,3.74630478,2669.3,2668.8,3.74699849]
[1747985094218,3.74630478,2669.3,2668.8,5.29642079]
[1747985094875,3.74648388,2669.2,2668.8,1.5494223]
[1747985095479,3.74637953,2669.3,2668.8,1.5494223]
[1747985096023,0.55,2669.4,2668.6,8.0]
[1747985096197,3.74668419,2669.1,2669.0,8.0]
[1747985096921,3.74645581,2669.2,2668.5,0.59531495]
[1747985096922,0.9539,2669.2,2668.5,0.59531495]
[1747985097095,3.74717147,2668.7,2668.5,0.59531495]
[1747985097292,3.74728321,2668.6,2668.5,0.59531495]
[1747985097492,4.82597783,2668.6,2668.5,0.59531495]
[1747985097692,4.29770453,2668.3,2668.2,14.57]
[1747985098206,3.74770453,2668.3,2668.2,14.57]
[1747985098516,3.74770453,2668.3,2668.2,22.57]
[1747985101417,4.29770453,2668.3,2668.2,22.57]
[1747985101622,6.04233361,2668.3,2668.2,22.57]
[1747985103600,3.74762484,2668.4,2668.3,8.0]
[1747985103941,6.0,2668.6,2668.3,8.0]
[1747985104608,6.0,2668.6,2668.0,8.0]
[1747985104942,3.74752351,2668.5,2668.2,8.0]
[1747985105435,3.74758182,2668.4,2668.3,0.20953117]
[1747985105836,3.74758182,2668.4,2668.3,15.12069082]
[1747985106145,3.74758182,2668.4,2668.3,23.12069082]
[1747985106452,4.29758182,2668.4,2668.3,8.54769082]
[1747985106660,5.73858375,2668.4,2668.3,23.12069082]
[1747985111120,5.73858375,2668.4,2668.3,23.12169082]
[1747985112853,5.73858375,2668.4,2668.3,0.54769082]
[1747985113034,5.73858375,2668.4,2668.3,14.91215965]
[1747985113237,5.73858375,2668.4,2668.3,14.574]
[1747985113439,3.74840692,2667.8,2667.7,16.166]
[1747985113752,3.74834501,2667.9,2667.7,41.969]
[1747985113957,3.74834501,2667.9,2667.8,14.575]
[1747985113958,4.29834501,2667.9,2667.8,14.575]
[1747985114153,4.29834501,2667.9,2667.8,14.9107316]
[1747985114746,4.29834501,2667.9,2667.8,15.12001727]
[1747985116549,4.29834501,2667.9,2667.8,8.54501727]
[1747985116749,4.29834501,2667.9,2667.8,34.35001727]
[1747985117274,6.07469357,2667.9,2667.8,0.54501727]
[1747985117492,5.27080958,2667.3,2667.2,0.59531495]
[1747985117691,16.50080958,2667.3,2667.2,0.59531495]
[1747985117893,4.29925014,2667.2,2667.1,0.02]
[1747985118193,11.27095014,2667.2,2667.1,0.02]
[1747985118959,5.24659375,2666.6,2666.5,16.171]
[1747985119193,4.30009375,2666.6,2666.5,16.171]
[1747985119840,4.30009375,2666.6,2666.5,24.171]
[1747985122379,4.30009375,2666.6,2666.5,38.73]
[1747985123084,4.30009375,2666.6,2666.5,38.732]
[1747985123561,4.30009375,2666.6,2666.5,24.171]
[1747985123898,5.19975017,2666.6,2666.5,38.732]
[1747985124066,3.75064662,2666.3,2665.7,5.9802698]
[1747985124261,3.75102632,2666.0,2665.8,14.561]
[1747985124503,0.55,2666.3,2665.8,14.561]
[1747985124789,0.55,2666.3,2665.7,2.22898336]
[1747985124790,0.9024,2666.6,2665.9,5.43000463]
[1747985125084,0.9024,2666.6,2666.0,3.75084998]
[1747985125085,0.55,2666.6,2666.0,3.75084998]
[1747985125286,3.75024246,2666.5,2666.1,25.795]
[1747985125450,3.7503843,2666.4,2666.1,25.795]
[1747985125974,3.75026522,2666.5,2666.1,25.795]
[1747985126166,3.75026522,2666.5,2666.2,8.0]
[1747985126570,3.75038185,2666.4,2666.2,8.0]
[1747985127378,3.75051569,2666.3,2666.2,8.0]
[1747985128075,3.75044398,2666.4,2666.2,8.0]
[1747985128390,4.65222347,2666.8,2666.2,8.0]
[1747985128391,3.74957865,2667.0,2666.5,3.75018688]
[1747985128601,3.7498125,2666.8,2666.7,8.0]
[1747985129588,3.74971205,2666.9,2666.7,8.0]